[Event "Live Chess"]
[Site "Chess.com"]
[Date "2024.06.02"]
[Round "-"]
[White "DarranAS"]
[Black "bonantagulo"]
[Result "0-1"]
[WhiteElo "1416"]
[BlackElo "2233"]
[TimeControl "300"]
[EndTime "8:32:40 PDT"]
[Termination "bonantagulo won by resignation"]

1. f4 {[%clk 0:04:55.2]} 1... d5 {[%clk 0:04:56.4]} 2. Nf3 {[%clk 0:04:54.3]}
2... g6 {[%clk 0:04:54.5]} 3. e3 {[%clk 0:04:50.7]} 3... Bg7 {[%clk 0:04:54]} 4.
Be2 {[%clk 0:04:48.2]} 4... Nh6 {[%clk 0:04:51.1]} 5. h3 {[%clk 0:04:45.5]} 5...
Nf5 {[%clk 0:04:49.3]} 6. O-O {[%clk 0:04:31.7]} 6... Ng3 {[%clk 0:04:46]} 7.
Re1 {[%clk 0:04:29.2]} 7... c5 {[%clk 0:04:38.5]} 8. c3 {[%clk 0:04:27.1]} 8...
Nc6 {[%clk 0:04:11.5]} 9. Kh2 {[%clk 0:04:18.8]} 9... Nxe2 {[%clk 0:04:07.4]}
10. Qxe2 {[%clk 0:04:18.7]} 10... c4 {[%clk 0:03:58.2]} 11. d3 {[%clk
0:04:13.2]} 11... cxd3 {[%clk 0:03:56.3]} 12. Qxd3 {[%clk 0:04:11.8]} 12... Bf5
{[%clk 0:03:56]} 13. Qe2 {[%clk 0:04:05]} 13... O-O {[%clk 0:03:53.4]} 14. Nbd2
{[%clk 0:03:59.5]} 14... Qc7 {[%clk 0:03:46.9]} 15. g4 {[%clk 0:03:56.6]} 15...
Bc2 {[%clk 0:03:35.8]} 16. Nf1 {[%clk 0:03:44.9]} 16... Be4 {[%clk 0:03:34.3]}
17. Ng3 {[%clk 0:03:42.2]} 17... e5 {[%clk 0:03:33.2]} 18. Nxe4 {[%clk
0:03:37.8]} 18... dxe4 {[%clk 0:03:32.4]} 19. Ng5 {[%clk 0:03:03.9]} 19... Bh6
{[%clk 0:03:07.3]} 20. Nxe4 {[%clk 0:02:59.1]} 20... exf4 {[%clk 0:03:06.2]} 21.
exf4 {[%clk 0:02:55.5]} 21... Bxf4+ {[%clk 0:03:05.1]} 22. Bxf4 {[%clk
0:02:54.1]} 22... Qxf4+ {[%clk 0:03:05]} 23. Kg2 {[%clk 0:02:52]} 23... Rfe8
{[%clk 0:03:00.9]} 24. Nf6+ {[%clk 0:02:09.4]} 24... Qxf6 {[%clk 0:02:58.7]} 25.
Qxe8+ {[%clk 0:02:06.6]} 25... Rxe8 {[%clk 0:02:58.6]} 26. Rxe8+ {[%clk
0:02:04.8]} 26... Kg7 {[%clk 0:02:58.1]} 27. Rae1 {[%clk 0:01:57.3]} 27... h5
{[%clk 0:02:55.6]} 28. R8e4 {[%clk 0:01:44.9]} 28... hxg4 {[%clk 0:02:49.9]} 29.
Rxg4 {[%clk 0:01:42.4]} 29... Ne5 {[%clk 0:02:46.5]} 30. Rg3 {[%clk 0:01:37.7]}
30... Qc6+ {[%clk 0:02:41.8]} 31. Kf2 {[%clk 0:01:28.4]} 31... Qb6+ {[%clk
0:02:38.3]} 32. Kf1 {[%clk 0:01:20.2]} 32... Qb5+ {[%clk 0:02:32.7]} 33. Kg1
{[%clk 0:01:17.1]} 33... Nd3 {[%clk 0:02:27]} 34. Re2 {[%clk 0:01:08.1]} 34...
Nxb2 {[%clk 0:02:20.6]} 35. Rf2 {[%clk 0:01:01]} 35... Nd3 {[%clk 0:02:14.9]}
36. Rf1 {[%clk 0:00:54.2]} 36... Qc5+ {[%clk 0:02:09.5]} 37. Kh1 {[%clk
0:00:52.1]} 37... Nf2+ {[%clk 0:02:00.4]} 38. Kh2 {[%clk 0:00:50.6]} 38... Ne4
{[%clk 0:01:57.9]} 39. Rg2 {[%clk 0:00:47.5]} 39... Qe5+ {[%clk 0:01:54.4]} 40.
Kh1 {[%clk 0:00:45.5]} 40... Ng3+ {[%clk 0:01:51.5]} 0-1

[Event "Live Chess"]
[Site "Chess.com"]
[Date "2024.06.02"]
[Round "-"]
[White "V1nas"]
[Black "joellloyd"]
[Result "0-1"]
[WhiteElo "1322"]
[BlackElo "1869"]
[TimeControl "300"]
[EndTime "8:32:46 PDT"]
[Termination "joellloyd won by resignation"]

1. d4 {[%clk 0:04:57.9]} 1... c6 {[%clk 0:04:59.3]} 2. e4 {[%clk 0:04:56]} 2...
d5 {[%clk 0:04:59.2]} 3. Nc3 {[%clk 0:04:54.7]} 3... dxe4 {[%clk 0:04:58.6]} 4.
Nxe4 {[%clk 0:04:54.6]} 4... Nf6 {[%clk 0:04:58.1]} 5. Nxf6+ {[%clk 0:04:53.1]}
5... exf6 {[%clk 0:04:58]} 6. Bd3 {[%clk 0:04:49.5]} 6... Bd6 {[%clk 0:04:56.5]}
7. Be3 {[%clk 0:04:47.4]} 7... O-O {[%clk 0:04:55.1]} 8. Nf3 {[%clk 0:04:46.4]}
8... Re8 {[%clk 0:04:54.7]} 9. O-O {[%clk 0:04:45.2]} 9... Bg4 {[%clk 0:04:54]}
10. h3 {[%clk 0:04:43.7]} 10... Bh5 {[%clk 0:04:52.9]} 11. Be2 {[%clk
0:04:41.7]} 11... Qc7 {[%clk 0:04:51.1]} 12. c4 {[%clk 0:04:37.2]} 12... Nd7
{[%clk 0:04:49]} 13. Qc2 {[%clk 0:04:34.5]} 13... Bg6 {[%clk 0:04:44.9]} 14. Bd3
{[%clk 0:04:32.7]} 14... Bxd3 {[%clk 0:04:39.7]} 15. Qxd3 {[%clk 0:04:32.6]}
15... c5 {[%clk 0:04:36.5]} 16. d5 {[%clk 0:04:27.7]} 16... b6 {[%clk
0:04:33.8]} 17. Rad1 {[%clk 0:04:23.9]} 17... Ne5 {[%clk 0:04:32.9]} 18. Nxe5
{[%clk 0:04:22.1]} 18... Bxe5 {[%clk 0:04:32.6]} 19. b3 {[%clk 0:04:19.6]} 19...
Qd6 {[%clk 0:04:30.8]} 20. g3 {[%clk 0:04:09.6]} 20... Bxg3 {[%clk 0:04:23.8]}
21. f4 {[%clk 0:03:45.1]} 21... Qe7 {[%clk 0:04:07.3]} 22. Bf2 {[%clk
0:03:39.4]} 22... Bxf4 {[%clk 0:04:01.5]} 23. Rde1 {[%clk 0:03:25.9]} 23... Be5
{[%clk 0:03:55.9]} 24. Qf5 {[%clk 0:03:12.2]} 24... g6 {[%clk 0:03:52]} 25. Qg4
{[%clk 0:03:03.4]} 25... Qd6 {[%clk 0:03:46]} 26. Kh1 {[%clk 0:02:52.7]} 26...
f5 {[%clk 0:03:37.9]} 27. Qh4 {[%clk 0:02:41.7]} 27... Bf6 {[%clk 0:03:34.7]}
28. Qh6 {[%clk 0:02:40.4]} 28... Bg7 {[%clk 0:03:31.5]} 29. Qg5 {[%clk
0:02:39.4]} 29... h6 {[%clk 0:03:23.6]} 30. Qd2 {[%clk 0:02:13.2]} 30... Kh7
{[%clk 0:03:17.8]} 31. Re2 {[%clk 0:01:56.3]} 31... Re4 {[%clk 0:03:10]} 32.
Rxe4 {[%clk 0:01:52]} 32... fxe4 {[%clk 0:03:09.9]} 33. Qe3 {[%clk 0:01:47.5]}
33... Re8 {[%clk 0:03:08.2]} 34. Rg1 {[%clk 0:01:45.2]} 34... Bd4 {[%clk
0:03:02.9]} 35. Qg3 {[%clk 0:01:30.2]} 35... Be5 {[%clk 0:02:53.2]} 36. Qf3
{[%clk 0:01:22.2]} 36... exf3 {[%clk 0:02:51.6]} 0-1

[Event "Live Chess"]
[Site "Chess.com"]
[Date "2024.06.02"]
[Round "-"]
[White "Purple1szed"]
[Black "silunn"]
[Result "1-0"]
[WhiteElo "2001"]
[BlackElo "2050"]
[TimeControl "300"]
[EndTime "8:32:47 PDT"]
[Termination "Purple1szed won by checkmate"]

1. e4 {[%clk 0:04:59.3]} 1... e6 {[%clk 0:04:59.9]} 2. d4 {[%clk 0:04:58.4]}
2... d5 {[%clk 0:04:59.7]} 3. Nd2 {[%clk 0:04:58.3]} 3... Nf6 {[%clk 0:04:58.7]}
4. e5 {[%clk 0:04:57.6]} 4... Nfd7 {[%clk 0:04:58.2]} 5. Ngf3 {[%clk 0:04:57.5]}
5... c5 {[%clk 0:04:57.8]} 6. c3 {[%clk 0:04:57.4]} 6... Nc6 {[%clk 0:04:57.2]}
7. Bd3 {[%clk 0:04:56.8]} 7... cxd4 {[%clk 0:04:56.2]} 8. cxd4 {[%clk
0:04:56.7]} 8... Qb6 {[%clk 0:04:55.2]} 9. O-O {[%clk 0:04:56.4]} 9... Be7
{[%clk 0:04:52.1]} 10. h4 {[%clk 0:04:52.8]} 10... Nxd4 {[%clk 0:04:47]} 11.
Nxd4 {[%clk 0:04:52.7]} 11... Qxd4 {[%clk 0:04:46.4]} 12. Nf3 {[%clk 0:04:52.6]}
12... Qb6 {[%clk 0:04:45.6]} 13. Bg5 {[%clk 0:04:45.7]} 13... Bc5 {[%clk
0:04:37.5]} 14. Rc1 {[%clk 0:04:38.6]} 14... h6 {[%clk 0:04:35.4]} 15. Bf4
{[%clk 0:04:29.7]} 15... g5 {[%clk 0:04:16.9]} 16. hxg5 {[%clk 0:04:26.1]} 16...
hxg5 {[%clk 0:04:16.8]} 17. Nxg5 {[%clk 0:04:26]} 17... Qb4 {[%clk 0:04:05.3]}
18. Qf3 {[%clk 0:03:57.3]} 18... b6 {[%clk 0:03:22.9]} 19. a3 {[%clk 0:03:50.1]}
19... Qb3 {[%clk 0:03:07.3]} 20. Nxe6 {[%clk 0:03:46.2]} 20... Rb8 {[%clk
0:02:23.6]} 21. Nxc5 {[%clk 0:03:23.4]} 21... bxc5 {[%clk 0:02:19.4]} 22. e6
{[%clk 0:03:18.5]} 22... fxe6 {[%clk 0:02:16.5]} 23. Bxb8 {[%clk 0:03:15.6]}
23... Qxb8 {[%clk 0:02:14.1]} 24. Bg6+ {[%clk 0:03:09.9]} 24... Kd8 {[%clk
0:02:12]} 25. g3 {[%clk 0:03:04.8]} 25... Bb7 {[%clk 0:02:00.7]} 26. Qf4 {[%clk
0:02:50.4]} 26... Qxf4 {[%clk 0:01:51.5]} 27. gxf4 {[%clk 0:02:50.3]} 27... Rg8
{[%clk 0:01:50.7]} 28. f5 {[%clk 0:02:49.6]} 28... exf5 {[%clk 0:01:49.6]} 29.
Kh2 {[%clk 0:02:45.8]} 29... Rxg6 {[%clk 0:01:47.9]} 30. Rg1 {[%clk 0:02:44.9]}
30... Rh6+ {[%clk 0:01:47.1]} 31. Kg3 {[%clk 0:02:44]} 31... Ne5 {[%clk
0:01:35.6]} 32. Rcd1 {[%clk 0:02:19.7]} 32... d4 {[%clk 0:01:18.4]} 33. Kf4
{[%clk 0:02:14.5]} 33... Nf3 {[%clk 0:00:59.6]} 34. Rg8+ {[%clk 0:02:08.9]}
34... Kc7 {[%clk 0:00:56.4]} 35. Kxf5 {[%clk 0:02:08.3]} 35... Rh2 {[%clk
0:00:44.3]} 36. Rg7+ {[%clk 0:02:05.9]} 36... Kb6 {[%clk 0:00:42.1]} 37. Kf4
{[%clk 0:01:47.9]} 37... Rxf2 {[%clk 0:00:39.1]} 38. Rg6+ {[%clk 0:01:44.9]}
38... Kb5 {[%clk 0:00:36.5]} 39. Kg3 {[%clk 0:01:41.9]} 39... Rxb2 {[%clk
0:00:27.5]} 40. Rg7 {[%clk 0:01:41.2]} 40... Bc6 {[%clk 0:00:24.2]} 41. Rg8
{[%clk 0:01:37.8]} 41... Ne5 {[%clk 0:00:22.4]} 42. Rb8+ {[%clk 0:01:36.2]}
42... Ka6 {[%clk 0:00:19.6]} 43. Rxb2 {[%clk 0:01:36.1]} 43... Bb5 {[%clk
0:00:18.2]} 44. Re1 {[%clk 0:01:32.5]} 44... Nd3 {[%clk 0:00:17.4]} 45. Re6+
{[%clk 0:01:29.6]} 45... Ka5 {[%clk 0:00:16.3]} 46. Rh2 {[%clk 0:01:26.5]} 46...
c4 {[%clk 0:00:15]} 47. Rh7 {[%clk 0:01:24]} 47... Ka4 {[%clk 0:00:14]} 48.
Rxa7+ {[%clk 0:01:21.5]} 48... Kb3 {[%clk 0:00:13.3]} 49. Rb6 {[%clk 0:01:15.1]}
49... c3 {[%clk 0:00:12.6]} 50. Rxb5+ {[%clk 0:01:13]} 50... Ka2 {[%clk
0:00:12]} 51. Rc7 {[%clk 0:01:09.3]} 51... Kxa3 {[%clk 0:00:09.5]} 52. Ra7#
{[%clk 0:01:07.8]} 1-0

[Event "Live Chess"]
[Site "Chess.com"]
[Date "2024.06.02"]
[Round "-"]
[White "RichardABates"]
[Black "bobby_jamesFischer86"]
[Result "1-0"]
[WhiteElo "2374"]
[BlackElo "1637"]
[TimeControl "300"]
[EndTime "8:33:06 PDT"]
[Termination "RichardABates won by resignation"]

1. d4 {[%clk 0:04:56.9]} 1... d5 {[%clk 0:04:56.8]} 2. c4 {[%clk 0:04:55.4]}
2... c6 {[%clk 0:04:55.6]} 3. Nf3 {[%clk 0:04:53.9]} 3... Nf6 {[%clk 0:04:54.5]}
4. e3 {[%clk 0:04:51.2]} 4... e6 {[%clk 0:04:51.8]} 5. Bd3 {[%clk 0:04:48.4]}
5... Be7 {[%clk 0:04:50.3]} 6. O-O {[%clk 0:04:46]} 6... dxc4 {[%clk 0:04:47.9]}
7. Bxc4 {[%clk 0:04:44.6]} 7... b5 {[%clk 0:04:46.7]} 8. Bb3 {[%clk 0:04:42.8]}
8... Nbd7 {[%clk 0:04:45.5]} 9. Qe2 {[%clk 0:04:39.2]} 9... Nb6 {[%clk
0:04:43.9]} 10. e4 {[%clk 0:04:37.2]} 10... a6 {[%clk 0:04:41.6]} 11. Bd2 {[%clk
0:04:33.6]} 11... Bb7 {[%clk 0:04:36.7]} 12. Ba5 {[%clk 0:04:31.1]} 12... Qc7
{[%clk 0:04:28.7]} 13. Nbd2 {[%clk 0:04:27.4]} 13... O-O {[%clk 0:04:26.5]} 14.
Rac1 {[%clk 0:04:25.7]} 14... Nfd7 {[%clk 0:04:17.8]} 15. e5 {[%clk 0:04:15.1]}
15... Qd8 {[%clk 0:04:08.9]} 16. Ne4 {[%clk 0:04:12.3]} 16... Qe8 {[%clk
0:04:05.8]} 17. Bxb6 {[%clk 0:03:51.1]} 17... Nxb6 {[%clk 0:04:04.1]} 18. Bc2
{[%clk 0:03:50.3]} 18... Rc8 {[%clk 0:03:55]} 19. Nc5 {[%clk 0:03:44.6]} 19...
Rc7 {[%clk 0:03:48.1]} 20. Be4 {[%clk 0:03:31.1]} 20... Bxc5 {[%clk 0:03:45.4]}
21. dxc5 {[%clk 0:03:29.6]} 21... Nd5 {[%clk 0:03:44.1]} 22. Bxh7+ {[%clk
0:03:15.7]} 22... Kxh7 {[%clk 0:03:35.5]} 23. Ng5+ {[%clk 0:03:13.8]} 23... Kg8
{[%clk 0:03:34.3]} 24. Qh5 {[%clk 0:03:11.9]} 24... Nf6 {[%clk 0:03:27.8]} 25.
exf6 {[%clk 0:03:10.2]} 1-0

[Event "Live Chess"]
[Site "Chess.com"]
[Date "2024.06.02"]
[Round "-"]
[White "GerardATHart"]
[Black "upoe610"]
[Result "0-1"]
[WhiteElo "1395"]
[BlackElo "2147"]
[TimeControl "300"]
[EndTime "8:33:14 PDT"]
[Termination "upoe610 won by checkmate"]

1. e4 {[%clk 0:04:58.8]} 1... e5 {[%clk 0:04:58.3]} 2. Nf3 {[%clk 0:04:56.5]}
2... Nc6 {[%clk 0:04:57.2]} 3. Bb5 {[%clk 0:04:54.2]} 3... a6 {[%clk 0:04:56.1]}
4. Ba4 {[%clk 0:04:52.8]} 4... Nf6 {[%clk 0:04:55.1]} 5. d3 {[%clk 0:04:51.3]}
5... b5 {[%clk 0:04:53.7]} 6. Bb3 {[%clk 0:04:49.7]} 6... Bc5 {[%clk 0:04:53.6]}
7. c3 {[%clk 0:04:48.2]} 7... d6 {[%clk 0:04:50.4]} 8. h3 {[%clk 0:04:47.5]}
8... h6 {[%clk 0:04:49.4]} 9. O-O {[%clk 0:04:45.8]} 9... Ba7 {[%clk 0:04:48.5]}
10. Re1 {[%clk 0:04:44.3]} 10... g5 {[%clk 0:04:46.6]} 11. Nbd2 {[%clk
0:04:41.4]} 11... g4 {[%clk 0:04:45.2]} 12. hxg4 {[%clk 0:04:38.9]} 12... Nxg4
{[%clk 0:04:44.1]} 13. Re2 {[%clk 0:04:10.8]} 13... Qf6 {[%clk 0:04:41.4]} 14.
Nf1 {[%clk 0:04:06.9]} 14... Rg8 {[%clk 0:04:39.9]} 15. Ng3 {[%clk 0:04:05.2]}
15... Nxf2 {[%clk 0:04:35.4]} 16. Rxf2 {[%clk 0:03:39.8]} 16... Rxg3 {[%clk
0:04:33.7]} 17. Nd4 {[%clk 0:03:26.4]} 17... Qh4 {[%clk 0:04:01.1]} 18. Bxf7+
{[%clk 0:03:07.7]} 18... Kd7 {[%clk 0:03:49.4]} 19. Be6+ {[%clk 0:03:00.7]}
19... Ke7 {[%clk 0:03:48.5]} 20. Nxc6+ {[%clk 0:02:56.8]} 20... Kxe6 {[%clk
0:03:47.9]} 21. Nxa7 {[%clk 0:02:52.6]} 21... Rxa7 {[%clk 0:03:46.1]} 22. Be3
{[%clk 0:02:25]} 22... c5 {[%clk 0:03:42.3]} 23. Qd2 {[%clk 0:02:19.2]} 23...
Rag7 {[%clk 0:03:38.1]} 24. Raf1 {[%clk 0:02:12]} 24... R7g6 {[%clk 0:03:29.1]}
25. d4 {[%clk 0:01:32.4]} 25... Rh3 {[%clk 0:03:23.7]} 26. d5+ {[%clk
0:01:26.2]} 26... Kd7 {[%clk 0:03:17.1]} 27. Rf7+ {[%clk 0:01:23.3]} 27... Kd8
{[%clk 0:03:16.1]} 28. Rf8+ {[%clk 0:01:16.5]} 28... Kc7 {[%clk 0:03:15.1]} 29.
R1f7+ {[%clk 0:01:13.9]} 29... Kb8 {[%clk 0:03:11]} 30. Rxc8+ {[%clk 0:01:11.1]}
30... Kxc8 {[%clk 0:03:09.9]} 31. Rf8+ {[%clk 0:01:07.7]} 31... Kd7 {[%clk
0:03:09.1]} 32. Rf7+ {[%clk 0:01:04.3]} 32... Ke8 {[%clk 0:03:08.1]} 33. Ra7
{[%clk 0:00:54.2]} 33... Rh1# {[%clk 0:03:00.6]} 0-1

[Event "Live Chess"]
[Site "Chess.com"]
[Date "2024.06.02"]
[Round "-"]
[White "FlyingChessKestrel13"]
[Black "GEMdzq"]
[Result "1/2-1/2"]
[WhiteElo "2079"]
[BlackElo "2269"]
[TimeControl "300"]
[EndTime "8:33:19 PDT"]
[Termination "Game drawn by repetition"]

1. e4 {[%clk 0:04:58]} 1... Nf6 {[%clk 0:04:59.3]} 2. e5 {[%clk 0:04:56.5]} 2...
Nd5 {[%clk 0:04:59]} 3. d4 {[%clk 0:04:55.5]} 3... d6 {[%clk 0:04:58.3]} 4. exd6
{[%clk 0:04:54.3]} 4... cxd6 {[%clk 0:04:57.1]} 5. c4 {[%clk 0:04:53.7]} 5...
Nf6 {[%clk 0:04:55.2]} 6. Nc3 {[%clk 0:04:53.1]} 6... g6 {[%clk 0:04:54]} 7. Nf3
{[%clk 0:04:52.2]} 7... Bg7 {[%clk 0:04:53.6]} 8. Be2 {[%clk 0:04:51.5]} 8...
O-O {[%clk 0:04:53.2]} 9. O-O {[%clk 0:04:50.9]} 9... Bf5 {[%clk 0:04:47.8]} 10.
Re1 {[%clk 0:04:50.2]} 10... Nc6 {[%clk 0:04:46.6]} 11. Bf1 {[%clk 0:04:49.1]}
11... Rc8 {[%clk 0:04:44.3]} 12. Bf4 {[%clk 0:04:45.1]} 12... Re8 {[%clk
0:04:32.8]} 13. Qa4 {[%clk 0:04:27.4]} 13... Nh5 {[%clk 0:04:16.5]} 14. Be3
{[%clk 0:04:25.3]} 14... a5 {[%clk 0:03:58.5]} 15. Nb5 {[%clk 0:04:21.4]} 15...
Nb4 {[%clk 0:03:55.6]} 16. Rac1 {[%clk 0:04:18.1]} 16... Bd3 {[%clk 0:03:38.2]}
17. a3 {[%clk 0:04:12.8]} 17... Bxf1 {[%clk 0:03:37.1]} 18. Rxf1 {[%clk
0:04:11.8]} 18... Nd3 {[%clk 0:03:35.8]} 19. Rc2 {[%clk 0:04:03.7]} 19... e5
{[%clk 0:03:32.3]} 20. dxe5 {[%clk 0:03:54.7]} 20... dxe5 {[%clk 0:03:32.2]} 21.
Rd1 {[%clk 0:03:49.9]} 21... e4 {[%clk 0:03:31.1]} 22. Ne1 {[%clk 0:03:43.2]}
22... Nc5 {[%clk 0:03:25.3]} 23. Rxd8 {[%clk 0:03:38.7]} 23... Nxa4 {[%clk
0:03:24.6]} 24. Rxe8+ {[%clk 0:03:35.1]} 24... Rxe8 {[%clk 0:03:23.6]} 25. b3
{[%clk 0:03:34.3]} 25... Nb2 {[%clk 0:03:15.1]} 26. g4 {[%clk 0:03:26.6]} 26...
Nd3 {[%clk 0:03:08.6]} 27. Nxd3 {[%clk 0:03:25.2]} 27... exd3 {[%clk 0:03:07.9]}
28. Rd2 {[%clk 0:03:24.4]} 28... Nf6 {[%clk 0:03:07.1]} 29. g5 {[%clk 0:03:22]}
29... Ng4 {[%clk 0:03:01.3]} 30. Rxd3 {[%clk 0:03:20.8]} 30... Nxe3 {[%clk
0:03:00.5]} 31. fxe3 {[%clk 0:03:19.8]} 31... h6 {[%clk 0:02:57.3]} 32. gxh6
{[%clk 0:03:17.9]} 32... Bxh6 {[%clk 0:02:56.4]} 33. Kf2 {[%clk 0:03:17.6]}
33... Bf8 {[%clk 0:02:50.9]} 34. Nd6 {[%clk 0:03:10.3]} 34... Re7 {[%clk
0:02:44.7]} 35. Ke2 {[%clk 0:03:08]} 35... b6 {[%clk 0:02:36.3]} 36. b4 {[%clk
0:03:06.3]} 36... axb4 {[%clk 0:02:34.5]} 37. axb4 {[%clk 0:03:05.2]} 37... Ra7
{[%clk 0:02:33.4]} 38. c5 {[%clk 0:03:02.6]} 38... bxc5 {[%clk 0:02:27.3]} 39.
bxc5 {[%clk 0:03:01.8]} 39... Ra2+ {[%clk 0:02:26.2]} 40. Kf3 {[%clk 0:03:00.3]}
40... Rc2 {[%clk 0:02:23.7]} 41. Rd5 {[%clk 0:02:54.1]} 41... f5 {[%clk
0:02:16.3]} 42. Kf4 {[%clk 0:02:46.1]} 42... Rc3 {[%clk 0:02:01.3]} 43. h4
{[%clk 0:02:39.1]} 43... Rxc5 {[%clk 0:01:48.4]} 44. Ke5 {[%clk 0:02:31.3]}
44... Rc3 {[%clk 0:01:30.4]} 45. Nxf5 {[%clk 0:02:27.7]} 45... gxf5 {[%clk
0:01:28.5]} 46. Kxf5 {[%clk 0:02:27]} 46... Rxe3 {[%clk 0:01:27.4]} 47. h5
{[%clk 0:02:23.9]} 47... Kh7 {[%clk 0:01:24.8]} 48. Kg4 {[%clk 0:02:21.6]} 48...
Be7 {[%clk 0:01:20.5]} 49. Rb5 {[%clk 0:02:07.5]} 49... Kh6 {[%clk 0:01:18.6]}
50. Rb6+ {[%clk 0:02:06.2]} 50... Kh7 {[%clk 0:01:16.8]} 51. Rb5 {[%clk
0:02:00.6]} 51... Bf6 {[%clk 0:01:06.9]} 52. Kf5 {[%clk 0:01:57.5]} 52... Bg7
{[%clk 0:01:05.7]} 53. Rb6 {[%clk 0:01:52.9]} 53... Re5+ {[%clk 0:01:02.7]} 54.
Kg4 {[%clk 0:01:51.4]} 54... Rc5 {[%clk 0:01:01.3]} 55. Ra6 {[%clk 0:01:46.8]}
55... Rc4+ {[%clk 0:01:00.2]} 56. Kg5 {[%clk 0:01:42]} 56... Rc5+ {[%clk
0:00:58.9]} 57. Kg4 {[%clk 0:01:41.2]} 57... Rc4+ {[%clk 0:00:54.8]} 58. Kg5
{[%clk 0:01:40.4]} 58... Rc1 {[%clk 0:00:52.7]} 59. Kg4 {[%clk 0:01:35.5]} 59...
Rg1+ {[%clk 0:00:50.9]} 60. Kh4 {[%clk 0:01:33.7]} 60... Bf8 {[%clk 0:00:49.6]}
61. Ra7+ {[%clk 0:01:30.8]} 61... Kh6 {[%clk 0:00:44.8]} 62. Ra6+ {[%clk
0:01:29.6]} 62... Kh7 {[%clk 0:00:41.5]} 63. Ra7+ {[%clk 0:01:28.7]} 63... Bg7
{[%clk 0:00:40]} 64. Rb7 {[%clk 0:01:22.9]} 64... Rh1+ {[%clk 0:00:38.4]} 65.
Kg4 {[%clk 0:01:21.1]} 65... Rg1+ {[%clk 0:00:38.1]} 66. Kh4 {[%clk 0:01:18.7]}
66... Rh1+ {[%clk 0:00:38]} 67. Kg4 {[%clk 0:01:18]} 67... Rg1+ {[%clk
0:00:37.9]} 68. Kh4 {[%clk 0:01:17.4]} 1/2-1/2

[Event "Live Chess"]
[Site "Chess.com"]
[Date "2024.06.02"]
[Round "-"]
[White "kylet1990"]
[Black "ZatixMajor"]
[Result "0-1"]
[WhiteElo "781"]
[BlackElo "2057"]
[TimeControl "300"]
[EndTime "8:33:35 PDT"]
[Termination "ZatixMajor won by resignation"]

1. e4 {[%clk 0:04:59.1]} 1... c5 {[%clk 0:04:59.3]} 2. Bc4 {[%clk 0:04:57.5]}
2... e6 {[%clk 0:04:58.2]} 3. f4 {[%clk 0:04:55.4]} 3... a6 {[%clk 0:04:56.8]}
4. Nf3 {[%clk 0:04:54.5]} 4... d5 {[%clk 0:04:56]} 5. exd5 {[%clk 0:04:52.9]}
5... exd5 {[%clk 0:04:55.9]} 6. Qe2+ {[%clk 0:04:52]} 6... Be7 {[%clk
0:04:51.6]} 7. Bd3 {[%clk 0:04:50]} 7... Nf6 {[%clk 0:04:48.7]} 8. c3 {[%clk
0:04:46.2]} 8... O-O {[%clk 0:04:43.9]} 9. b4 {[%clk 0:04:39.9]} 9... Re8 {[%clk
0:04:39.6]} 10. bxc5 {[%clk 0:04:37.2]} 10... Bxc5 {[%clk 0:04:37.4]} 11. Ne5
{[%clk 0:04:31]} 11... Nc6 {[%clk 0:04:28.1]} 12. Kd1 {[%clk 0:04:21.4]} 12...
Nxe5 {[%clk 0:04:19.2]} 13. fxe5 {[%clk 0:04:20.4]} 13... Bg4 {[%clk 0:04:18.5]}
0-1

[Event "Live Chess"]
[Site "Chess.com"]
[Date "2024.06.02"]
[Round "-"]
[White "JohanKjeldahl"]
[Black "beltmanjb"]
[Result "0-1"]
[WhiteElo "1797"]
[BlackElo "1712"]
[TimeControl "300"]
[EndTime "8:33:41 PDT"]
[Termination "beltmanjb won by resignation"]

1. e4 {[%clk 0:04:56.8]} 1... c5 {[%clk 0:04:59]} 2. Nf3 {[%clk 0:04:55]} 2...
Nc6 {[%clk 0:04:58.3]} 3. d4 {[%clk 0:04:54.2]} 3... cxd4 {[%clk 0:04:57.5]} 4.
Nxd4 {[%clk 0:04:53.2]} 4... e5 {[%clk 0:04:55.7]} 5. Nb5 {[%clk 0:04:51.6]}
5... d6 {[%clk 0:04:55.2]} 6. N1c3 {[%clk 0:04:49]} 6... a6 {[%clk 0:04:53.8]}
7. Na3 {[%clk 0:04:46.6]} 7... Be7 {[%clk 0:04:53.4]} 8. Nd5 {[%clk 0:04:45.2]}
8... Nf6 {[%clk 0:04:51.6]} 9. Bd3 {[%clk 0:04:32.4]} 9... Nxd5 {[%clk
0:04:46.3]} 10. exd5 {[%clk 0:04:31.2]} 10... Qa5+ {[%clk 0:04:46]} 11. Bd2
{[%clk 0:04:22.3]} 11... Qxd5 {[%clk 0:04:45.5]} 12. O-O {[%clk 0:04:20.3]}
12... b5 {[%clk 0:04:30.5]} 13. Qe2 {[%clk 0:03:44.1]} 13... f5 {[%clk
0:04:02.9]} 14. c4 {[%clk 0:03:37.4]} 14... bxc4 {[%clk 0:03:18.3]} 15. Bxc4
{[%clk 0:03:35.5]} 15... Qc5 {[%clk 0:02:59.9]} 16. Rac1 {[%clk 0:03:31.7]}
16... Nd4 {[%clk 0:02:48.6]} 17. Qe3 {[%clk 0:03:12.1]} 17... Qb6 {[%clk
0:02:36.1]} 18. Bd5 {[%clk 0:02:59.2]} 18... Bb7 {[%clk 0:02:30]} 19. Nc4 {[%clk
0:02:56.1]} 19... Qb5 {[%clk 0:02:10.6]} 20. a4 {[%clk 0:02:45.5]} 20... Qxd5
{[%clk 0:02:01]} 21. Qh3 {[%clk 0:02:38.8]} 21... Ne2+ {[%clk 0:01:54.9]} 22.
Kh1 {[%clk 0:02:35.9]} 22... Nxc1 {[%clk 0:01:48.1]} 23. Rxc1 {[%clk 0:02:34.7]}
23... O-O {[%clk 0:01:45.3]} 0-1